[Event "The Kvibergspelen 2024"]
[Site "Kviberg Park Hotel & Conference, Krutvagen 2, Gothenburg, Sweden"]
[Date "2024.09.08"]
[Round "7.6"]
[White "Kingsley, Elias"]
[Black "Frank, Anton"]
[Result "0-1"]
[TimeControl "15 minutes + 5 seconds per move from move one (Round 1 - 4) / 90 minutes + 30 seconds per move from move one (Round 5 - 8)"]
[WhiteFideId "1775006"]
[BlackFideId "1752383"]
[WhiteElo "2047"]
[BlackElo "2142"]

1. c4 {[%clk 01:30:54]} {[%emt 00:00:06]} e6 {[%clk 01:30:32]} {[%emt
00:00:28]} 2. Nc3 {[%clk 01:30:41]} {[%emt 00:00:43]} d5 {[%clk 01:30:52]}
{[%emt 00:00:09]} 3. d4 {[%clk 01:31:04]} {[%emt 00:00:08]} Nf6 {[%clk
01:31:13]} {[%emt 00:00:10]} 4. Nf3 {[%clk 01:31:29]} {[%emt 00:00:04]} dxc4
{[%clk 01:31:35]} {[%emt 00:00:08]} 5. e4 {[%clk 01:26:29]} {[%emt 00:05:29]}
b5 {[%clk 01:31:56]} {[%emt 00:00:10]} 6. e5 {[%clk 01:24:52]} {[%emt
00:02:07]} Nd5 {[%clk 01:32:17]} {[%emt 00:00:08]} 7. Nxb5 {[%clk 01:24:45]}
{[%emt 00:00:39]} Nb6 {[%clk 01:32:39]} {[%emt 00:00:07]} 8. Be3 {[%clk
01:16:49]} {[%emt 00:08:26]} Nc6 {[%clk 01:32:39]} {[%emt 00:00:29]} 9. Be2
{[%clk 01:13:56]} {[%emt 00:03:24]} Be7 {[%clk 01:33:02]} {[%emt 00:00:07]} 10.
O-O {[%clk 01:11:47]} {[%emt 00:02:39]} O-O {[%clk 01:33:25]} {[%emt 00:00:07]}
11. b3 {[%clk 01:03:12]} {[%emt 00:09:06]} cxb3 {[%clk 01:30:23]} {[%emt
00:03:30]} 12. axb3 {[%clk 01:02:31]} {[%emt 00:01:12]} Bb7 {[%clk 01:28:42]}
{[%emt 00:02:11]} 13. Qb1 {[%clk 00:50:23]} {[%emt 00:12:37]} Nb4 {[%clk
01:22:48]} {[%emt 00:06:25]} 14. Rc1 {[%clk 00:44:57]} {[%emt 00:05:56]} N6d5
{[%clk 01:22:12]} {[%emt 00:01:05]} 15. Nc3 {[%clk 00:38:36]} {[%emt 00:06:52]}
Nxe3 {[%clk 01:01:19]} {[%emt 00:21:23]} 16. fxe3 {[%clk 00:38:58]} {[%emt
00:00:07]} c5 {[%clk 00:55:16]} {[%emt 00:06:33]} 17. Ne4 {[%clk 00:35:23]}
{[%emt 00:04:05]} cxd4 {[%clk 00:54:40]} {[%emt 00:01:07]} 18. exd4 {[%clk
00:35:27]} {[%emt 00:00:26]} h6 {[%clk 00:54:41]} {[%emt 00:00:29]} 19. Kh1
{[%clk 00:32:05]} {[%emt 00:03:52]} Qb6 {[%clk 00:48:48]} {[%emt 00:06:23]} 20.
Nc5 {[%clk 00:28:41]} {[%emt 00:03:53]} Bc6 {[%clk 00:47:23]} {[%emt 00:01:55]}
21. Na6 {[%clk 00:22:36]} {[%emt 00:06:35]} Rac8 {[%clk 00:35:50]} {[%emt
00:12:04]} 22. Nxb4 {[%clk 00:19:18]} {[%emt 00:03:49]} Bxb4 {[%clk 00:36:07]}
{[%emt 00:00:12]} 23. Ra6 {[%clk 00:16:27]} {[%emt 00:03:22]} Qb7 {[%clk
00:36:24]} {[%emt 00:00:12]} 24. Ra2 {[%clk 00:14:59]} {[%emt 00:01:57]} Be4
{[%clk 00:33:32]} {[%emt 00:03:22]} 25. Qa1 {[%clk 00:13:38]} {[%emt 00:01:52]}
a5 {[%clk 00:33:31]} {[%emt 00:00:30]} 26. Bd1 {[%clk 00:10:54]} {[%emt
00:03:14]} Qd5 {[%clk 00:31:11]} {[%emt 00:02:50]} 27. Rxc8 {[%clk 00:06:46]}
{[%emt 00:04:39]} Rxc8 {[%clk 00:31:34]} {[%emt 00:00:06]} 28. Ra4 {[%clk
00:06:17]} {[%emt 00:01:00]} Qb5 {[%clk 00:26:46]} {[%emt 00:05:18]} 29. h3
{[%clk 00:05:32]} {[%emt 00:01:15]} Qf1+ {[%clk 00:24:45]} {[%emt 00:02:31]} 30.
Kh2 {[%clk 00:05:53]} {[%emt 00:00:08]} Bd2 {[%clk 00:23:57]} {[%emt 00:01:18]}
31. Nxd2 {[%clk 00:01:12]} {[%emt 00:05:12]} Qxg2# {[%clk 00:24:18]} {[%emt
00:00:09]} 0-1

[Event "The Kvibergspelen 2024"]
[Site "Kviberg Park Hotel & Conference, Krutvagen 2, Gothenburg, Sweden"]
[Date "2024.09.08"]
[Round "7.7"]
[White "Sjoholm, Emil"]
[Black "Mashhadi, Peyman"]
[Result "1-0"]
[TimeControl "15 minutes + 5 seconds per move from move one (Round 1 - 4) / 90 minutes + 30 seconds per move from move one (Round 5 - 8)"]
[WhiteFideId "1720449"]
[BlackFideId "1768581"]
[WhiteElo "2092"]
[BlackElo "2148"]

1. e4 {[%clk 01:30:57]} {[%emt 00:00:03]} e6 {[%clk 01:30:41]} {[%emt
00:00:20]} 2. d4 {[%clk 01:31:19]} {[%emt 00:00:08]} d5 {[%clk 01:31:07]}
{[%emt 00:00:04]} 3. Nd2 {[%clk 01:31:41]} {[%emt 00:00:07]} Nf6 {[%clk
01:31:25]} {[%emt 00:00:13]} 4. e5 {[%clk 01:32:00]} {[%emt 00:00:10]} Nfd7
{[%clk 01:31:51]} {[%emt 00:00:04]} 5. Bd3 {[%clk 01:32:21]} {[%emt 00:00:09]}
c5 {[%clk 01:32:02]} {[%emt 00:00:20]} 6. c3 {[%clk 01:32:45]} {[%emt
00:00:06]} Nc6 {[%clk 01:32:26]} {[%emt 00:00:06]} 7. Ne2 {[%clk 01:32:51]}
{[%emt 00:00:23]} Qb6 {[%clk 01:32:17]} {[%emt 00:00:40]} 8. Nf3 {[%clk
01:32:53]} {[%emt 00:00:27]} a5 {[%clk 01:30:57]} {[%emt 00:01:51]} 9. O-O
{[%clk 01:31:52]} {[%emt 00:01:30]} Be7 {[%clk 01:30:06]} {[%emt 00:01:21]} 10.
Nf4 {[%clk 01:26:01]} {[%emt 00:06:21]} cxd4 {[%clk 01:24:34]} {[%emt
00:06:02]} 11. cxd4 {[%clk 01:26:14]} {[%emt 00:00:18]} Qd8 {[%clk 01:08:48]}
{[%emt 00:16:15]} 12. Bd2 {[%clk 01:18:38]} {[%emt 00:08:06]} Nb4 {[%clk
01:06:21]} {[%emt 00:02:57]} 13. Be2 {[%clk 01:17:40]} {[%emt 00:01:28]} Nb6
{[%clk 01:04:24]} {[%emt 00:02:27]} 14. a3 {[%clk 01:17:13]} {[%emt 00:00:58]}
Nc6 {[%clk 01:04:45]} {[%emt 00:00:08]} 15. Rc1 {[%clk 01:16:18]} {[%emt
00:01:25]} Bd7 {[%clk 01:01:15]} {[%emt 00:04:01]} 16. Bd3 {[%clk 01:07:27]}
{[%emt 00:09:21]} h5 {[%clk 00:55:09]} {[%emt 00:06:35]} 17. Re1 {[%clk
00:38:01]} {[%emt 00:29:55]} g5 {[%clk 00:49:01]} {[%emt 00:06:38]} 18. Ng6
{[%clk 00:38:17]} {[%emt 00:00:16]} Rg8 {[%clk 00:49:17]} {[%emt 00:00:14]} 19.
Nxe7 {[%clk 00:38:20]} {[%emt 00:00:27]} Qxe7 {[%clk 00:49:32]} {[%emt
00:00:15]} 20. Qb3 {[%clk 00:34:49]} {[%emt 00:04:00]} Qd8 {[%clk 00:40:02]}
{[%emt 00:10:00]} 21. Bxg5 {[%clk 00:30:31]} {[%emt 00:04:49]} Rxg5 {[%clk
00:38:16]} {[%emt 00:02:15]} 22. Nxg5 {[%clk 00:30:35]} {[%emt 00:00:26]} a4
{[%clk 00:38:03]} {[%emt 00:00:43]} 23. Nxf7 {[%clk 00:30:27]} {[%emt
00:00:39]} axb3 {[%clk 00:34:28]} {[%emt 00:04:04]} 24. Nxd8 {[%clk 00:30:17]}
{[%emt 00:00:40]} Kxd8 {[%clk 00:34:48]} {[%emt 00:00:10]} 25. Be2 {[%clk
00:28:28]} {[%emt 00:02:19]} Be8 {[%clk 00:33:42]} {[%emt 00:01:37]} 26. Red1
{[%clk 00:27:31]} {[%emt 00:01:26]} Bg6 {[%clk 00:26:39]} {[%emt 00:07:33]} 27.
Rc3 {[%clk 00:26:06]} {[%emt 00:01:55]} Bc2 {[%clk 00:23:52]} {[%emt 00:03:17]}
28. Rd2 {[%clk 00:25:58]} {[%emt 00:00:38]} Na4 {[%clk 00:22:31]} {[%emt
00:01:51]} 29. Rg3 {[%clk 00:24:22]} {[%emt 00:02:06]} Kc7 {[%clk 00:16:02]}
{[%emt 00:07:00]} 30. h4 {[%clk 00:22:10]} {[%emt 00:02:42]} Na5 {[%clk
00:12:16]} {[%emt 00:04:16]} 31. Bxh5 {[%clk 00:20:42]} {[%emt 00:01:58]} Nc4
{[%clk 00:12:05]} {[%emt 00:00:41]} 32. Rdd3 {[%clk 00:17:43]} {[%emt
00:03:29]} Bxd3 {[%clk 00:10:39]} {[%emt 00:01:56]} 33. Rxd3 {[%clk 00:18:00]}
{[%emt 00:00:12]} Na5 {[%clk 00:10:32]} {[%emt 00:00:38]} 34. Bd1 {[%clk
00:17:41]} {[%emt 00:00:48]} Nxb2 {[%clk 00:10:13]} {[%emt 00:00:50]} 35. Rc3+
{[%clk 00:18:05]} {[%emt 00:00:06]} Nbc4 {[%clk 00:09:23]} {[%emt 00:01:21]} 36.
Bxb3 {[%clk 00:18:21]} {[%emt 00:00:13]} Kd7 {[%clk 00:09:14]} {[%emt
00:00:39]} 37. h5 {[%clk 00:15:56]} {[%emt 00:02:55]} b6 {[%clk 00:09:11]}
{[%emt 00:00:33]} 38. Ba4+ {[%clk 00:15:09]} {[%emt 00:01:17]} Ke7 {[%clk
00:08:52]} {[%emt 00:00:49]} 39. Rg3 {[%clk 00:15:28]} {[%emt 00:00:10]} Rh8
{[%clk 00:08:14]} {[%emt 00:01:09]} 40. Rg7+ {[%clk 00:13:53]} {[%emt
00:02:04]} Kf8 {[%clk 00:08:23]} {[%emt 00:00:22]} 41. Rg6 {[%clk 00:14:15]}
{[%emt 00:00:07]} Kf7 {[%clk 00:07:41]} {[%emt 00:01:12]} 42. g4 {[%clk
00:14:16]} {[%emt 00:00:29]} Nb7 {[%clk 00:05:57]} {[%emt 00:02:15]} 43. Rf6+
{[%clk 00:12:40]} {[%emt 00:02:06]} Ke7 {[%clk 00:06:07]} {[%emt 00:00:20]} 44.
h6 {[%clk 00:12:50]} {[%emt 00:00:20]} Nd2 {[%clk 00:05:19]} {[%emt 00:01:18]}
45. Bc2 {[%clk 00:12:38]} {[%emt 00:00:41]} Nd8 {[%clk 00:04:24]} {[%emt
00:01:26]} 46. Kg2 {[%clk 00:07:09]} {[%emt 00:05:59]} Nf7 {[%clk 00:04:34]}
{[%emt 00:00:20]} 47. Bg6 {[%clk 00:07:15]} {[%emt 00:00:23]} Nxh6 {[%clk
00:04:09]} {[%emt 00:00:55]} 48. g5 {[%clk 00:07:41]} {[%emt 00:00:05]} Ng4
{[%clk 00:02:09]} {[%emt 00:02:29]} 49. Rf7+ {[%clk 00:08:09]} {[%emt
00:00:02]} Kd8 {[%clk 00:02:38]} {[%emt 00:00:01]} 50. Kg3 {[%clk 00:06:59]}
{[%emt 00:01:41]} Nh2 {[%clk 00:02:04]} {[%emt 00:01:03]} 51. Bd3 {[%clk
00:06:48]} {[%emt 00:00:41]} Ne4+ {[%clk 00:01:19]} {[%emt 00:01:15]} 52. Bxe4
{[%clk 00:06:49]} {[%emt 00:00:29]} dxe4 {[%clk 00:01:48]} {[%emt 00:00:02]} 53.
g6 {[%clk 00:07:04]} {[%emt 00:00:14]} Nf1+ {[%clk 00:00:39]} {[%emt 00:01:40]}
54. Kg2 {[%clk 00:06:47]} {[%emt 00:00:47]} Rg8 {[%clk 00:00:54]} {[%emt
00:00:14]} 55. g7 {[%clk 00:06:52]} {[%emt 00:00:26]} Ke8 {[%clk 00:01:16]}
{[%emt 00:00:07]} 56. Rf8+ {[%clk 00:06:40]} {[%emt 00:00:42]} Rxf8 {[%clk
00:01:10]} {[%emt 00:00:37]} 57. gxf8=Q+ {[%clk 00:07:02]} {[%emt 00:00:06]}
Kxf8 {[%clk 00:01:38]} {[%emt 00:00:04]} 58. Kxf1 {[%clk 00:07:20]} {[%emt
00:00:11]} 1-0

[Event "The Kvibergspelen 2024"]
[Site "Kviberg Park Hotel & Conference, Krutvagen 2, Gothenburg, Sweden"]
[Date "2024.09.08"]
[Round "7.8"]
[White "Al Waeli, Laith"]
[Black "Ask, Josef"]
[Result "1-0"]
[TimeControl "15 minutes + 5 seconds per move from move one (Round 1 - 4) / 90 minutes + 30 seconds per move from move one (Round 5 - 8)"]
[WhiteTitle "FM"]
[BlackTitle "FM"]
[WhiteFideId "4801059"]
[BlackFideId "1704583"]
[WhiteElo "2049"]
[BlackElo "2106"]

1. e4 {[%clk 01:25:09]} {[%emt 00:05:36]} c5 {[%clk 01:30:53]} {[%emt
00:00:21]} 2. c3 {[%clk 01:23:43]} {[%emt 00:01:56]} e5 {[%clk 01:30:08]}
{[%emt 00:01:16]} 3. Nf3 {[%clk 01:23:06]} {[%emt 00:01:06]} Nc6 {[%clk
01:30:09]} {[%emt 00:00:30]} 4. Bc4 {[%clk 01:21:46]} {[%emt 00:01:50]} Nf6
{[%clk 01:20:08]} {[%emt 00:10:32]} 5. d3 {[%clk 01:19:45]} {[%emt 00:02:29]}
h6 {[%clk 01:18:31]} {[%emt 00:02:08]} 6. O-O {[%clk 01:16:59]} {[%emt
00:03:14]} Bd6 {[%clk 01:15:44]} {[%emt 00:03:19]} 7. Bb3 {[%clk 01:16:28]}
{[%emt 00:01:00]} Bb8 {[%clk 01:10:13]} {[%emt 00:06:01]} 8. Re1 {[%clk
01:14:21]} {[%emt 00:02:34]} O-O {[%clk 01:09:25]} {[%emt 00:01:20]} 9. Nbd2
{[%clk 01:14:28]} {[%emt 00:00:23]} a6 {[%clk 01:04:04]} {[%emt 00:05:53]} 10.
Nf1 {[%clk 01:10:11]} {[%emt 00:04:46]} d5 {[%clk 01:02:30]} {[%emt 00:02:04]}
11. Ng3 {[%clk 00:52:37]} {[%emt 00:18:04]} Be6 {[%clk 00:54:29]} {[%emt
00:08:32]} 12. Qe2 {[%clk 00:47:04]} {[%emt 00:06:02]} Re8 {[%clk 00:50:35]}
{[%emt 00:04:25]} 13. h3 {[%clk 00:44:07]} {[%emt 00:03:26]} b6 {[%clk
00:45:25]} {[%emt 00:05:40]} 14. Bc2 {[%clk 00:34:35]} {[%emt 00:10:01]} Bc7
{[%clk 00:41:41]} {[%emt 00:04:15]} 15. Nh2 {[%clk 00:34:35]} {[%emt 00:00:30]}
Qd7 {[%clk 00:32:55]} {[%emt 00:09:16]} 16. Qf3 {[%clk 00:33:26]} {[%emt
00:01:38]} Nh7 {[%clk 00:31:51]} {[%emt 00:01:36]} 17. Ng4 {[%clk 00:29:39]}
{[%emt 00:04:16]} Bd8 {[%clk 00:30:36]} {[%emt 00:01:45]} 18. Nf5 {[%clk
00:21:34]} {[%emt 00:08:33]} Bxf5 {[%emt 00:01:20]} 19. exf5 {[%clk 00:20:19]}
{[%emt 00:01:39]} Nf6 {[%clk 00:25:21]} {[%emt 00:05:02]} 20. Bb3 {[%clk
00:16:51]} {[%emt 00:03:58]} c4 {[%clk 00:23:26]} {[%emt 00:02:25]} 21. Nxf6+
{[%clk 00:16:41]} {[%emt 00:00:39]} Bxf6 {[%clk 00:23:51]} {[%emt 00:00:05]} 22.
dxc4 {[%clk 00:17:07]} {[%emt 00:00:05]} e4 {[%clk 00:23:25]} {[%emt 00:00:56]}
23. Qd1 {[%clk 00:12:10]} {[%emt 00:05:28]} d4 {[%clk 00:21:02]} {[%emt
00:02:52]} 24. Ba4 {[%clk 00:12:36]} {[%emt 00:00:05]} d3 {[%clk 00:19:50]}
{[%emt 00:01:41]} 25. Bf4 {[%clk 00:10:52]} {[%emt 00:02:14]} Qb7 {[%clk
00:17:25]} {[%emt 00:02:55]} 26. Qg4 {[%clk 00:10:07]} {[%emt 00:01:14]} Ne5
{[%clk 00:15:01]} {[%emt 00:02:54]} 27. Qg3 {[%clk 00:07:58]} {[%emt 00:02:39]}
b5 {[%clk 00:14:51]} {[%emt 00:00:41]} 28. cxb5 {[%clk 00:08:20]} {[%emt
00:00:09]} axb5 {[%clk 00:15:15]} {[%emt 00:00:05]} 29. Bb3 {[%clk 00:08:41]}
{[%emt 00:00:09]} Kh7 {[%clk 00:14:26]} {[%emt 00:01:18]} 30. Bxe5 {[%clk
00:06:37]} {[%emt 00:02:35]} Rxe5 {[%clk 00:14:40]} {[%emt 00:00:16]} 31. Rad1
{[%clk 00:06:11]} {[%emt 00:00:56]} Rxf5 {[%clk 00:13:29]} {[%emt 00:01:41]} 32.
Qg4 {[%clk 00:05:45]} {[%emt 00:00:55]} Re5 {[%clk 00:13:34]} {[%emt 00:00:26]}
33. f4 {[%clk 00:05:05]} {[%emt 00:01:10]} Re7 {[%clk 00:12:42]} {[%emt
00:01:22]} 34. Qf5+ {[%clk 00:05:25]} {[%emt 00:00:10]} Kg8 {[%clk 00:12:18]}
{[%emt 00:00:54]} 35. Bd5 {[%clk 00:03:42]} {[%emt 00:02:14]} Qb6+ {[%clk
00:12:28]} {[%emt 00:00:20]} 36. Kh1 {[%clk 00:04:07]} {[%emt 00:00:04]} Rae8
{[%clk 00:10:54]} {[%emt 00:02:05]} 37. Rxe4 {[%clk 00:03:25]} {[%emt
00:01:12]} Rxe4 {[%clk 00:09:28]} {[%emt 00:01:54]} 38. Bxe4 {[%clk 00:03:52]}
{[%emt 00:00:04]} g6 {[%clk 00:09:16]} {[%emt 00:00:42]} 39. Qd5 {[%clk
00:04:18]} {[%emt 00:00:05]} Rd8 {[%clk 00:09:00]} {[%emt 00:00:45]} 40. Qc6
{[%clk 00:04:42]} {[%emt 00:00:05]} Qxc6 {[%clk 00:07:11]} {[%emt 00:02:20]} 41.
Bxc6 {[%clk 00:05:07]} {[%emt 00:00:05]} b4 {[%clk 00:06:07]} {[%emt 00:01:35]}
42. cxb4 {[%clk 00:04:31]} {[%emt 00:01:05]} Bxb2 {[%clk 00:06:23]} {[%emt
00:00:14]} 43. a4 {[%clk 00:02:29]} {[%emt 00:02:32]} Bc3 {[%clk 00:06:30]}
{[%emt 00:00:23]} 44. b5 {[%clk 00:02:53]} {[%emt 00:00:06]} Ba5 {[%clk
00:06:46]} {[%emt 00:00:14]} 45. g3 {[%clk 00:02:38]} {[%emt 00:00:44]} d2
{[%clk 00:06:46]} {[%emt 00:00:31]} 46. Kg2 {[%clk 00:02:29]} {[%emt 00:00:39]}
Rd3 {[%clk 00:06:07]} {[%emt 00:01:09]} 47. Bf3 {[%clk 00:02:17]} {[%emt
00:00:42]} Rb3 {[%clk 00:05:41]} {[%emt 00:00:56]} 48. Kf2 {[%clk 00:01:52]}
{[%emt 00:00:54]} Kf8 {[%clk 00:05:41]} {[%emt 00:00:31]} 49. Bd5 {[%clk
00:01:12]} {[%emt 00:01:10]} Rb2 {[%clk 00:05:45]} {[%emt 00:00:26]} 50. Ke2
{[%clk 00:01:27]} {[%emt 00:00:15]} Ke7 {[%clk 00:05:14]} {[%emt 00:01:00]} 51.
g4 {[%clk 00:01:40]} {[%emt 00:00:18]} f6 {[%clk 00:05:25]} {[%emt 00:00:19]}
52. Be4 {[%clk 00:01:52]} {[%emt 00:00:17]} g5 {[%clk 00:05:35]} {[%emt
00:00:20]} 53. fxg5 {[%clk 00:02:13]} {[%emt 00:00:09]} fxg5 {[%clk 00:05:41]}
{[%emt 00:00:25]} 54. Rb1 {[%clk 00:01:58]} {[%emt 00:00:44]} Rxb1 {[%clk
00:03:24]} {[%emt 00:02:48]} 55. Bxb1 {[%clk 00:02:27]} {[%emt 00:00:01]} Kd6
{[%clk 00:03:43]} {[%emt 00:00:11]} 56. Bc2 {[%clk 00:02:32]} {[%emt 00:00:25]}
Kc5 {[%clk 00:03:34]} {[%emt 00:00:39]} 57. Kd3 {[%clk 00:02:30]} {[%emt
00:00:30]} Bb4 {[%clk 00:03:30]} {[%emt 00:00:36]} 58. Bb3 {[%clk 00:02:34]}
{[%emt 00:00:25]} Ba5 {[%clk 00:03:54]} {[%emt 00:00:07]} 59. Bd1 {[%clk
00:02:54]} {[%emt 00:00:10]} Kd6 {[%clk 00:03:11]} {[%emt 00:01:13]} 60. Kd4
{[%clk 00:03:10]} {[%emt 00:00:13]} Bb6+ {[%clk 00:02:49]} {[%emt 00:00:53]} 61.
Ke4 {[%clk 00:03:12]} {[%emt 00:00:28]} Kc5 {[%clk 00:02:48]} {[%emt 00:00:31]}
62. Kf5 {[%clk 00:03:33]} {[%emt 00:00:09]} Kd4 {[%clk 00:02:41]} {[%emt
00:00:37]} 63. Kg6 {[%clk 00:03:59]} {[%emt 00:00:04]} Ke3 {[%clk 00:02:41]}
{[%emt 00:00:31]} 64. Kxh6 {[%clk 00:04:19]} {[%emt 00:00:08]} Kf4 {[%clk
00:02:46]} {[%emt 00:00:25]} 65. Kh5 {[%clk 00:04:21]} {[%emt 00:00:28]} Bd8
{[%clk 00:02:41]} {[%emt 00:00:36]} 66. Kg6 {[%clk 00:01:22]} {[%emt 00:03:29]}
Kg3 {[%clk 00:02:26]} {[%emt 00:00:45]} 67. Kf7 {[%clk 00:00:57]} {[%emt
00:00:55]} Ba5 {[%clk 00:01:51]} {[%emt 00:01:05]} 68. Kf6 {[%clk 00:01:18]}
{[%emt 00:00:10]} Kf4 {[%clk 00:02:09]} {[%emt 00:00:11]} 69. Ke6 {[%clk
00:01:25]} {[%emt 00:00:23]} Ke4 {[%clk 00:01:20]} {[%emt 00:01:20]} 70. Kd6
{[%clk 00:01:46]} {[%emt 00:00:08]} Kd4 {[%clk 00:01:10]} {[%emt 00:00:40]} 71.
Kc6 {[%clk 00:02:09]} {[%emt 00:00:05]} Bd8 {[%clk 00:00:51]} {[%emt 00:00:51]}
72. b6 {[%clk 00:02:21]} {[%emt 00:00:18]} Bf6 {[%clk 00:01:07]} {[%emt
00:00:14]} 73. a5 {[%clk 00:02:43]} {[%emt 00:00:08]} 1-0